fUST/lending_fUST_20250825
["ID","MTS","AMOUNT","RATE_DAILY","PERIOD"]
[381274909,1756117855816,-953.41,0.00041095,30]
[381274910,1756117855825,-480.0,0.00041095,30]
[381274911,1756117855834,-2495.81,0.00041095,30]
[381274912,1756117855844,-1070.19,0.00041095,30]
[381274913,1756117855854,-3967.67,0.00041095,30]
[381274914,1756117855863,-480.0,0.00041095,30]
[381274915,1756117855873,-501.31023322,0.00041095,30]
[381274916,1756117855883,-480.0,0.00041095,30]
[381274917,1756117855893,-784.07,0.00041095,30]
[381274918,1756117855903,-606.41,0.00041095,30]
[381274919,1756117855912,-480.0,0.00041095,30]
[381274920,1756117855921,-480.0,0.00041095,30]
[381274921,1756117855931,-480.0,0.00041095,30]
[381274922,1756117855940,-1625.74,0.00041095,30]
[381274923,1756117855950,-480.0,0.00041095,30]
[381274924,1756117855960,-847.23,0.00041095,30]
[381274925,1756117855970,-480.0,0.00041095,30]
[381274926,1756117855981,-971.67,0.00041095,30]
[381274927,1756117855991,-480.0,0.00041095,30]
[381274928,1756117856001,-480.0,0.00041095,30]
[381274929,1756117856010,-480.0,0.00041095,30]
[381274930,1756117856020,-612.26,0.00041095,30]
[381274931,1756117856029,-627.13,0.00041095,30]
[381274932,1756117856040,-480.0,0.00041095,2]
[381274933,1756117856050,-1186.77,0.00041095,30]
[381274934,1756117856059,-480.0,0.00041095,30]
[381274935,1756117856068,-380.72074823,0.00041096,120]
[381274936,1756117856078,-1333.39560596,0.000411,14]
[381274937,1756117856179,-6133.41439404,0.000411,14]
[381274938,1756117856189,-151.0,0.000411,19]
[381274939,1756117856199,-160.0,0.00041288,3]
[381274940,1756117856210,-480.0,0.00041369,120]
[381274941,1756117856220,-480.0,0.00041369,30]
[381274942,1756117856231,-480.0,0.00041369,30]
[381274943,1756117856244,-480.0,0.00041369,30]
[381274944,1756117856256,-480.0,0.00041369,30]
[381274945,1756117856267,-480.0,0.00041369,30]
[381274946,1756117856278,-480.0,0.00041369,30]
[381274947,1756117856288,-780.24,0.00041369,30]
[381274948,1756117856300,-480.0,0.00041369,30]
[381274949,1756117856311,-480.0,0.00041369,30]
[381274950,1756117856321,-480.0,0.00041369,30]
[381274951,1756117856332,-480.0,0.00041369,30]
[381274952,1756117856342,-480.0,0.00041369,30]
[381274953,1756117856353,-480.0,0.00041369,30]
[381274954,1756117856364,-480.0,0.00041369,30]
[381274955,1756117856380,-480.0,0.00041369,30]
[381274956,1756117856391,-480.0,0.00041369,30]
[381274957,1756117856401,-480.0,0.00041369,30]
[381274958,1756117856413,-558.17,0.00041369,30]
[381274959,1756117856424,-480.0,0.00041369,30]
[381274960,1756117856433,-474.80120396,0.00041369,30]
[381274961,1756117856444,-480.0,0.00041369,30]
[381274962,1756117856454,-480.0,0.00041369,30]
[381274963,1756117856464,-480.0,0.00041369,30]
[381274964,1756117856474,-480.0,0.00041369,30]
[381274965,1756117856484,-480.0,0.00041369,30]
[381274966,1756117856494,-480.0,0.00041369,30]
[381274967,1756117856503,-484.51,0.00041369,30]
[381274968,1756117856513,-481.37,0.00041369,30]
[381274969,1756117856524,-480.0,0.00041369,30]
[381274970,1756117856533,-480.0,0.00041369,30]
[381274971,1756117856544,-480.0,0.00041369,30]
[381274972,1756117856554,-480.0,0.00041369,30]
[381274973,1756117856564,-3429.13,0.00041369,30]
[381274974,1756117856575,-2532.72,0.00041369,30]
[381274975,1756117856585,-480.0,0.00041369,30]
[381274976,1756117856594,-480.0,0.00041369,30]
[381274977,1756117856604,-611.79652522,0.00041369,30]
[381274978,1756117856613,-519.20247284,0.00041369,30]
[381274979,1756117856623,-1048.64,0.00041369,30]
[381274980,1756117856633,-480.0,0.00041369,30]
[381274981,1756117856643,-730.95,0.00041369,30]
[381274982,1756117856654,-701.8,0.00041369,30]
[381274983,1756117856664,-480.0,0.00041369,20]
[381274984,1756117856674,-480.0,0.00041369,30]
[381274985,1756117856684,-480.0,0.00041369,30]
[381274986,1756117856693,-761.56,0.00041369,30]
[381274987,1756117856703,-480.0,0.00041369,30]
[381274988,1756117856712,-931.74,0.00041369,30]
[381274989,1756117856723,-617.11,0.00041369,30]
[381274990,1756117856735,-542.59,0.00041369,30]
[381274991,1756117856745,-480.0,0.00041369,30]
[381274992,1756117856755,-548.11,0.00041369,30]
[381274993,1756117856766,-480.0,0.00041369,30]
[381274994,1756117856776,-633.62,0.00041369,30]
[381274995,1756117856786,-605.58,0.00041369,30]
[381274996,1756117856796,-718.93,0.00041369,30]
[381274997,1756117856806,-956.79,0.00041369,30]
[381274998,1756117856816,-1091.5,0.00041369,30]
[381274999,1756117856826,-480.0,0.00041369,30]
[381275000,1756117856836,-480.0,0.00041369,30]
[381275001,1756117856846,-512.36,0.00041369,30]
[381275002,1756117856856,-480.0,0.00041369,30]
[381275003,1756117856866,-480.0,0.00041369,30]
[381275004,1756117856876,-959.4,0.00041369,30]
[381275005,1756117856886,-516.66,0.00041369,30]
[381275006,1756117856896,-630.99,0.00041369,30]
[381275007,1756117856905,-480.0,0.00041369,2]
[381275008,1756117856915,-480.0,0.00041369,30]
[381275009,1756117856926,-480.0,0.00041369,30]
[381275010,1756117856936,-480.0,0.00041369,30]
[381275011,1756117856946,-233.94831165,0.00041369,30]
[381275012,1756117856956,-442.67593402,0.00041369,30]
[381275013,1756117856965,-480.0,0.00041369,30]
[381275014,1756117856979,-480.0,0.00041369,30]
[381275015,1756117856989,-1412.48,0.00041369,30]
[381275016,1756117856999,-480.0,0.00041369,30]
[381275017,1756117857009,-311.47221074,0.00041369,30]
[381275018,1756117857020,-519.58404202,0.00041369,30]
[381275019,1756117857030,-1159.53,0.00041369,30]
[381275020,1756117857040,-480.0,0.00041369,30]
[381275021,1756117857049,-480.0,0.00041369,30]
[381275022,1756117857059,-2103.18,0.00041369,30]
[381275023,1756117857069,-480.0,0.00041369,30]
[381275024,1756117857268,-480.0,0.00041369,30]
[381275025,1756117857278,-480.0,0.00041369,30]
[381275026,1756117857288,-480.0,0.00041369,30]
[381275027,1756117857297,-334.72177687,0.00041369,30]
[381275028,1756117857307,-596.62,0.00041369,30]
[381275029,1756117857317,-480.0,0.00041369,30]
[381275030,1756117857326,-480.0,0.00041369,30]
[381275031,1756117857336,-1217.74,0.00041369,30]
[381275032,1756117857345,-975.35,0.00041369,30]
[381275033,1756117857355,-480.0,0.00041369,30]
[381275034,1756117857366,-714.59,0.00041369,30]
[381275035,1756117857378,-962.87,0.00041369,30]
[381275036,1756117857388,-480.0,0.00041369,30]
[381275037,1756117857397,-898.86,0.00041369,30]
[381275038,1756117857406,-480.0,0.00041369,30]
[381275039,1756117857416,-480.0,0.00041369,30]
[381275040,1756117857426,-378.8395807,0.00041369,30]
[381275041,1756117857435,-480.0,0.00041369,30]
[381275042,1756117857446,-938.66,0.00041369,30]
[381275043,1756117857456,-480.0,0.00041369,30]
[381275044,1756117857465,-480.0,0.00041369,30]
[381275045,1756117857476,-767.81154795,0.00041369,30]
[381275046,1756117858093,-504.05,0.00041095,30]
[381275047,1756117858103,-23.31845205,0.00041369,30]
[381275048,1756117858112,-480.0,0.00041369,30]
[381275049,1756117858122,-480.0,0.00041369,30]
[381275050,1756117858131,-665.2,0.00041369,30]
[381275051,1756117858140,-480.0,0.00041369,30]
[381275052,1756117858150,-480.0,0.00041369,30]
[381275053,1756117858159,-807.43154795,0.00041369,30]
[381275054,1756117858171,-542.43845205,0.00041369,30]
[381275055,1756117858180,-480.0,0.00041369,30]
[381275056,1756117858190,-1012.46,0.00041369,30]
[381275057,1756117858200,-480.0,0.00041369,30]
[381275058,1756117858211,-480.0,0.00041369,30]
[381275059,1756117858221,-1673.44,0.00041369,30]
[381275060,1756117858231,-779.5,0.00041369,30]
[381275061,1756117858241,-480.0,0.00041369,30]
[381275062,1756117858250,-1238.98,0.00041369,30]
[381275063,1756117858261,-926.11,0.00041369,30]
[381275064,1756117858270,-676.21,0.00041369,30]
[381275065,1756117858280,-624.04,0.00041369,30]
[381275066,1756117858289,-480.0,0.00041369,30]
[381275067,1756117858299,-750.39,0.00041369,30]
[381275068,1756117858310,-612.14,0.00041369,30]
[381275069,1756117858319,-480.0,0.00041369,30]
[381275070,1756117858328,-688.32,0.00041369,14]
[381275071,1756117858337,-502.42,0.00041369,30]
[381275072,1756117858347,-1791.5,0.00041369,30]
[381275073,1756117858358,-480.0,0.00041369,30]
[381275074,1756117858369,-480.0,0.00041369,30]
[381275075,1756117858380,-480.0,0.00041369,30]
[381275076,1756117858390,-480.0,0.00041369,30]
[381275077,1756117858399,-480.0,0.00041369,30]
[381275078,1756117858409,-480.0,0.00041369,30]
[381275079,1756117858419,-2301.79,0.00041369,30]
[381275080,1756117858428,-480.0,0.00041369,30]
[381275081,1756117858438,-1261.14,0.00041369,30]
[381275082,1756117858447,-480.0,0.00041369,30]
[381275083,1756117858457,-139.12154795,0.00041369,30]
[381275084,1756117858470,-340.87845205,0.00041369,30]
[381275085,1756117858480,-874.6,0.00041369,30]
[381275086,1756117858490,-29.30117632,0.00041369,30]
[381275087,1756117858505,-450.69882368,0.00041369,30]
[381275088,1756117858515,-378.88652847,0.00041369,30]
[381275089,1756117858527,-580.08347153,0.00041369,30]
[381275090,1756117858537,-499.32,0.00041369,30]
[381275091,1756117858547,-480.0,0.00041369,30]
[381275092,1756117858556,-480.0,0.00041369,30]
[381275093,1756117858566,-722.47,0.00041369,30]
[381275094,1756117858575,-480.0,0.00041369,30]
[381275095,1756117858585,-480.0,0.00041369,30]
[381275096,1756117858596,-480.0,0.00041369,30]
[381275097,1756117858605,-480.0,0.00041369,30]
[381275098,1756117858614,-480.0,0.00041369,30]
[381275099,1756117858624,-480.0,0.00041369,30]
[381275100,1756117858633,-1000.58,0.00041369,30]
[381275101,1756117858643,-480.0,0.00041369,30]
[381275102,1756117858652,-480.0,0.00041369,30]
[381275103,1756117858662,-480.0,0.00041369,30]
[381275104,1756117858672,-480.0,0.00041369,30]
[381275105,1756117858682,-1754.2,0.00041369,30]
[381275106,1756117858692,-480.0,0.00041369,30]
[381275107,1756117858701,-586.52,0.00041369,30]
[381275108,1756117858711,-809.03,0.00041369,30]
[381275109,1756117858720,-613.6,0.00041369,30]
[381275110,1756117858729,-480.0,0.00041369,30]
[381275111,1756117858739,-696.01,0.00041369,30]
[381275112,1756117858748,-480.0,0.00041369,30]
[381275113,1756117858758,-480.0,0.00041369,30]
[381275114,1756117858768,-480.0,0.00041369,30]
[381275115,1756117858777,-480.0,0.00041369,30]
[381275116,1756117858786,-1567.8,0.00041369,30]
[381275117,1756117858796,-480.0,0.00041369,30]
[381275118,1756117858806,-861.51,0.00041369,30]
[381275119,1756117858815,-996.27,0.00041369,30]
[381275120,1756117858825,-480.0,0.00041369,30]
[381275121,1756117858834,-576.9,0.00041369,30]
[381275122,1756117858845,-480.0,0.00041369,30]
[381275123,1756117858854,-495.67,0.00041369,30]
[381275124,1756117858863,-1000.0,0.00041369,30]
[381275125,1756117858873,-1349.57,0.00041369,30]
[381275126,1756117858883,-3305.08,0.00041369,30]
[381275127,1756117858892,-480.0,0.00041369,30]
[381275128,1756117858901,-480.0,0.00041369,30]
[381275129,1756117858911,-480.0,0.00041369,30]
[381275130,1756117858921,-728.75,0.00041369,30]
[381275131,1756117858931,-480.0,0.00041369,30]
[381275132,1756117858940,-917.94,0.00041369,30]
[381275133,1756117858949,-480.0,0.00041369,30]
[381275134,1756117858959,-480.0,0.00041369,30]
[381275135,1756117858970,-480.0,0.00041369,7]
[381275136,1756117858981,-480.0,0.00041369,30]
[381275137,1756117858991,-1169.08,0.00041369,30]
[381275138,1756117859000,-480.0,0.00041369,30]
[381275139,1756117859010,-480.0,0.00041369,30]
[381275140,1756117859019,-480.0,0.00041369,30]
[381275141,1756117859029,-385.94646769,0.00041369,30]
[381275142,1756117859038,-480.0,0.00041369,30]
[381275143,1756117859047,-526.86,0.00041369,30]
[381275144,1756117859057,-572.07,0.00041369,30]
[381275145,1756117859067,-480.0,0.00041369,30]
[381275146,1756117859079,-968.4,0.00041369,30]
[381275147,1756117859089,-976.32,0.00041369,30]
[381275148,1756117859098,-796.7,0.00041369,30]
[381275149,1756117859107,-1351.97,0.00041369,30]
[381275150,1756117859117,-480.0,0.00041369,30]
[381275151,1756117859126,-2273.05,0.00041369,30]
[381275152,1756117859136,-480.0,0.00041369,30]
[381275153,1756117859146,-480.0,0.00041369,30]
[381275154,1756117859155,-480.0,0.00041369,30]
[381275155,1756117859165,-1825.18,0.00041369,30]
[381275156,1756117859174,-630.51,0.00041369,30]
[381275157,1756117859184,-757.75,0.00041369,30]
[381275158,1756117859193,-692.84,0.00041369,30]
[381275159,1756117859203,-480.0,0.00041369,30]
[381275160,1756117859212,-599.56,0.00041369,30]
[381275161,1756117859222,-498.19,0.00041369,30]
[381275162,1756117859233,-480.0,0.00041369,30]
[381275163,1756117859243,-480.0,0.00041369,30]
[381275164,1756117859252,-480.0,0.00041369,30]
[381275165,1756117859262,-1799.73,0.00041369,30]
[381275166,1756117859274,-480.0,0.00041369,30]
[381275167,1756117859283,-480.0,0.00041369,30]
[381275168,1756117859293,-1254.99,0.00041369,30]
[381275169,1756117859308,-480.0,0.00041369,30]
[381275170,1756117859318,-480.0,0.00041369,30]
[381275171,1756117859329,-480.0,0.00041369,30]
[381275172,1756117859339,-480.0,0.00041369,30]
[381275173,1756117859349,-1636.5,0.00041369,30]
[381275174,1756117859360,-788.22,0.00041369,30]
[381275175,1756117859375,-480.0,0.00041369,30]
[381275176,1756117859384,-480.0,0.00041369,30]
[381275177,1756117859394,-480.0,0.00041369,30]
[381275178,1756117859404,-480.0,0.00041369,30]
[381275179,1756117859415,-1300.87,0.00041369,30]
[381275180,1756117859424,-480.0,0.00041369,30]
[381275181,1756117859434,-1330.74,0.00041369,30]
[381275182,1756117859446,-1132.11,0.00041369,30]
[381275183,1756117859457,-480.0,0.00041369,30]
[381275184,1756117859467,-1195.52216213,0.00041369,120]
[381275185,1756117872894,315.94,0.00027397,120]
[381275189,1756117985595,164.208336,0.00013699,2]
[381275190,1756118018975,201.4441358,0.000199,2]
[381275192,1756118209137,202.0704913,0.000199,2]
[381275196,1756118281538,321.98826876,0.00027397,120]
[381275199,1756118401808,202.97360418,0.000199,2]
[381275200,1756118401965,202.97360411,0.00024907,2]
[381275202,1756118584462,208.81360831,0.000199,2]
[381275203,1756118584824,208.81360825,0.00024452,2]
[381275207,1756118678697,500.82276523,0.00025499,2]
[381275208,1756118763613,202.43418026,0.000199,2]
[381275209,1756118764023,202.43418023,0.00022535,2]
[381275210,1756118764078,202.43418023,0.00025171,2]
[381275216,1756118953084,202.48944392,0.000199,2]
[381275217,1756118953301,202.48944376,0.00023029,2]
[381275237,1756119031868,-314.26,0.00025778,2]
[381275238,1756119031923,-105.858793,0.00025778,2]
[381275239,1756119031932,-309.64283621,0.00026044,2]
[381275240,1756119031941,-202.48944376,0.00026159,4]
[381275241,1756119031949,-20.60031446,0.00028152,15]
[381275242,1756119031984,-262.81279894,0.00028152,15]
[381275243,1756119031993,-202.48944376,0.00029288,11]
[381275244,1756119032002,-3633.25,0.00032,30]
[381275245,1756119032013,-202.48944376,0.00032418,18]
[381275247,1756119032022,-208.923086,0.00033132,2]
[381275249,1756119032031,-184.13304,0.00034917,2]
[381275252,1756119032040,-400.0,0.00035259,2]
[381275254,1756119032051,-300.0,0.00035259,3]
[381275256,1756119032062,-202.48944376,0.00035547,25]
[381275258,1756119032072,-257.7519242,0.00036352,2]
[381275260,1756119032081,-199.0,0.000376,30]
[381275262,1756119032090,-163.26000101,0.000376,2]
[381275264,1756119032100,-30561.05674471,0.000376,2]
[381275266,1756119032108,-160.0,0.000376,2]
[381275268,1756119032117,-199.0,0.000377,30]
[381275271,1756119032127,-199.0,0.000378,30]
[381275273,1756119032136,-160.0,0.00037869,2]
[381275275,1756119032145,-199.0,0.000379,30]
[381275278,1756119032154,-240.0,0.00038148,2]
[381275281,1756119032164,-1901.58,0.00038356,14]
[381275284,1756119032173,-164.208336,0.00038356,2]
[381275288,1756119032182,-1901.58,0.0003863,14]
[381275292,1756119032191,-202.48944376,0.00038676,31]
[381275295,1756119032201,-151.341868,0.00038798,20]
[381275298,1756119032210,-1901.58,0.00038904,14]
[381275299,1756119032219,-1901.58,0.00039178,14]
[381275300,1756119032229,-1808.53718403,0.00039452,14]
[381275310,1756119037695,-164.0,0.00038,30]
[381275311,1756119037705,-93.04281597,0.00039452,14]
[381275313,1756119037714,-44.95718403,0.00039459,60]
[381275776,1756119042009,-0.01965992,0.00039459,60]
[381275778,1756119042021,-106.36502405,0.00039459,60]
[381275780,1756119042031,-151.341868,0.00039535,7]
[381275782,1756119042040,-18.23310791,0.00039623,2]
[381276166,1756119046051,-199.0,0.000379,30]
[381276168,1756119046060,-141.76689209,0.00039623,2]
[381276170,1756119046069,-7.32048992,0.00039697,2]
[381279496,1756119134181,202.48944376,0.000199,2]
[381279497,1756119134296,202.48944376,0.00025463,3]
[381279501,1756119315198,451.89770887,0.00025205,30]
[381279502,1756119316677,164.75382,0.00013699,2]
[381279503,1756119317666,202.23633199,0.000199,2]
[381279543,1756119492455,202.19828929,0.000199,2]
[381279544,1756119672238,202.19828924,0.000199,2]
[381279545,1756119846883,201.9048648,0.000199,2]
[381279547,1756120030479,201.56835669,0.000199,2]
[381279548,1756120212311,201.16521999,0.000199,2]
[381279595,1756120232214,-152.909315,0.00025778,2]
[381279597,1756120232224,-151.34292353,0.00026044,2]
[381279598,1756120232234,-895.74776147,0.00026826,2]
[381279599,1756120232245,-149.20999038,0.00026826,2]
[381279601,1756120232255,-182.45,0.00028266,15]
[381279603,1756120232264,-150.33,0.00028266,15]
[381279605,1756120232274,-182.4602205,0.00028366,15]
[381279608,1756120232283,-150.33,0.00028366,15]
[381279609,1756120232293,-150.33,0.00028466,15]
[381279611,1756120232305,-150.33,0.00028566,15]
[381279613,1756120232315,-150.33,0.00028666,15]
[381279615,1756120232325,-150.33,0.00028766,15]
[381279617,1756120232334,-260.50101539,0.00028842,2]
[381279619,1756120232345,-150.33,0.00028866,15]
[381279621,1756120232355,-38.62584236,0.00028966,15]
[381279689,1756120237812,-111.70415764,0.00028966,15]
[381279691,1756120237823,-150.33,0.00029066,15]
[381279693,1756120237833,-89.24139884,0.00029166,15]
[381279701,1756120238135,-61.08860116,0.00029166,15]
[381279702,1756120238145,-150.33,0.00029266,15]
[381279703,1756120238155,-150.33,0.00029366,15]
[381279704,1756120238164,-150.33,0.00029466,15]
[381279706,1756120238173,-1200.0,0.00029564,2]
[381279707,1756120238183,-150.33,0.00029566,15]
[381279708,1756120238192,-150.33,0.00029666,15]
[381279710,1756120238202,-300.0,0.00029766,2]
[381279712,1756120238211,-300.0,0.00029766,2]
[381279713,1756120238220,-150.33,0.00029766,15]
[381279714,1756120238229,-150.33,0.00029866,15]
[381279715,1756120238239,-150.33,0.00029966,15]
[381279716,1756120238249,-150.33,0.00030066,15]
[381279717,1756120238259,-150.33,0.00030166,15]
[381279718,1756120238268,-150.33,0.00030266,15]
[381279719,1756120238277,-150.33,0.00030366,15]
[381279720,1756120238287,-150.33,0.00030466,15]
[381279721,1756120238296,-150.33,0.00030566,15]
[381279722,1756120238312,-150.33,0.00030666,15]
[381279723,1756120238321,-150.33,0.00030766,15]
[381279724,1756120238331,-150.33,0.00030866,15]
[381279725,1756120238340,-150.33,0.00030966,15]
[381279726,1756120238350,-150.33,0.00031066,15]
[381279727,1756120238359,-150.33,0.00031166,15]
[381279728,1756120238368,-173.042823,0.00031211,2]
[381279729,1756120238378,-150.33,0.00031266,15]
[381279730,1756120238388,-150.33,0.00031366,15]
[381279731,1756120238397,-150.33,0.00031466,15]
[381279732,1756120238407,-150.33,0.00031566,15]
[381279733,1756120238417,-150.33,0.00031666,15]
[381279734,1756120238426,-150.33,0.00031766,15]
[381279735,1756120238437,-150.33,0.00031866,15]
[381279736,1756120238446,-150.33,0.00031966,15]
[381279737,1756120238456,-1226.0,0.00032014,3]
[381279738,1756120238466,-500.0,0.00032015,3]
[381279739,1756120238476,-150.33,0.00032066,15]
[381279740,1756120238485,-150.33,0.00032166,15]
[381279741,1756120238494,-150.33,0.00032266,15]
[381279742,1756120238503,-500.0,0.00032289,3]
[381279743,1756120238513,-150.33,0.00032366,15]
[381279744,1756120238522,-201.16521996,0.00032418,18]
[381279745,1756120238745,-150.33,0.00032466,15]
[381279746,1756120238759,-500.0,0.00032563,3]
[381279747,1756120238769,-150.33,0.00032566,15]
[381279748,1756120238778,-150.33,0.00032666,15]
[381279749,1756120238787,-150.33,0.00032766,15]
[381279750,1756120238796,-150.33,0.00032866,15]
[381279751,1756120238806,-150.33,0.00032966,60]
[381279752,1756120238815,-150.33,0.00033066,60]
[381279753,1756120238825,-150.33,0.00033166,60]
[381279754,1756120238835,-150.33,0.00033266,60]
[381279755,1756120238844,-150.33,0.00033366,60]
[381279756,1756120238855,-150.33,0.00033466,60]
[381279757,1756120238865,-150.33,0.00033566,60]
[381279758,1756120238874,-150.33,0.00033666,60]
[381279759,1756120238883,-150.33,0.00033766,60]
[381279760,1756120238892,-150.33,0.00033866,60]
[381279761,1756120238902,-150.33,0.00033966,60]
[381279762,1756120238910,-150.33,0.00034066,60]
[381279763,1756120238919,-150.33,0.00034166,60]
[381279764,1756120238928,-164.75382,0.00034247,2]
[381279765,1756120238938,-150.33,0.00034266,60]
[381279766,1756120238946,-150.33,0.00034366,60]
[381279767,1756120238955,-150.33,0.00034466,60]
[381279768,1756120238964,-150.33,0.00034566,60]
[381279769,1756120238974,-150.33,0.00034666,60]
[381279770,1756120238984,-150.33,0.00034766,60]
[381279771,1756120238993,-150.33,0.00034866,60]
[381279772,1756120239003,-160.0,0.00034886,2]
[381279773,1756120239012,-150.33,0.00034966,60]
[381279774,1756120239021,-150.33,0.00035066,60]
[381279775,1756120239030,-150.33,0.00035166,60]
[381279776,1756120239040,-150.33,0.00035266,60]
[381279777,1756120239049,-150.33,0.00035366,60]
[381279778,1756120239058,-150.33,0.00035466,60]
[381279779,1756120239069,-150.51,0.00035566,60]
[381279780,1756120239078,-1478.97083694,0.00036008,120]
[381279781,1756120239087,-387.2256533,0.00036248,30]
[381279782,1756120239096,-387.2256533,0.00036248,30]
[381279783,1756120239105,-387.2256533,0.00036248,30]
[381279784,1756120239115,-387.2256533,0.00036248,30]
[381279785,1756120239124,-387.2256533,0.00036248,30]
[381279786,1756120239133,-387.2256533,0.00036248,30]
[381279787,1756120239143,-387.2256533,0.00036248,30]
[381279788,1756120239152,-237.0175681,0.00036385,30]
[381279789,1756120239161,-153.0,0.00036385,30]
[381279790,1756120239171,-153.0,0.00036385,30]
[381279791,1756120239180,-564.1103267,0.00036515,2]
[381279792,1756120239189,-294.2662707,0.00036578,30]
[381279793,1756120239198,-153.0,0.00036578,30]
[381279794,1756120239208,-294.2662707,0.00036578,30]
[381279795,1756120239218,-294.2662707,0.00036578,30]
[381279796,1756120239227,-153.0,0.00036578,30]
[381279797,1756120239236,-637.0,0.0003762,2]
[381279798,1756120239246,-2155.0,0.0003762,2]
[381279799,1756120239255,-300.0,0.0003795,20]
[381279800,1756120239265,-300.0,0.0003795,20]
[381279801,1756120239274,-300.0,0.0003795,20]
[381279802,1756120239286,-300.0,0.0003795,20]
[381279803,1756120239296,-300.0,0.0003795,20]
[381279804,1756120239308,-165.0,0.00038,30]
[381279805,1756120239318,-153.0,0.00038333,30]
[381279806,1756120239327,-153.0,0.00038334,30]
[381279807,1756120239336,-153.0,0.00038341,30]
[381279808,1756120239346,-153.0,0.00038342,30]
[381279809,1756120239355,-1401.24848637,0.00038356,2]
[381279810,1756120239365,-12701.40788335,0.00038356,120]
[381279811,1756120239376,-1000.0,0.00038356,120]
[381279812,1756120239387,-1000.0,0.00038356,120]
[381279813,1756120239396,-1000.0,0.00038356,120]
[381279815,1756120239407,-1000.0,0.00038356,120]
[381279817,1756120239416,-1000.0,0.00038356,120]
[381279818,1756120239425,-1000.0,0.00038356,120]
[381279819,1756120239434,-1000.0,0.00038356,120]
[381279820,1756120239443,-1000.0,0.00038356,120]
[381279821,1756120239452,-1000.0,0.00038356,120]
[381279823,1756120239463,-1000.0,0.00038356,120]
[381279824,1756120239473,-1505.41,0.00038356,14]
[381279825,1756120239482,-1505.41,0.0003863,14]
[381279826,1756120239491,-151.341869,0.00038798,20]
[381279827,1756120239500,-1505.41,0.00038904,14]
[381279828,1756120239509,-168.0,0.00038982,2]
[381279829,1756120239518,-10000.0,0.00039,60]
[381279830,1756120239528,-1505.41,0.00039178,14]
[381279831,1756120239537,-168.0,0.00039308,2]
[381279832,1756120239547,-1505.41,0.00039452,14]
[381279833,1756120239556,-168.0,0.00039493,2]
[381279835,1756120239565,-160.0,0.00039564,2]
[381279837,1756120239575,-160.0,0.00039627,2]
[381279839,1756120239584,-160.0,0.00039627,2]
[381279840,1756120239592,-150.159,0.00039697,2]
[381279842,1756120239602,-9274.896998,0.00039697,2]
[381279844,1756120239611,-973.0,0.00039697,2]
[381279846,1756120239620,-7779.4659376,0.000397,5]
[381279848,1756120239629,-1579.82660713,0.00039714,120]
[381279850,1756120239638,-1505.41,0.00039726,14]
[381279852,1756120239647,-2600.0,0.0003976,7]
[381279854,1756120239657,-505.97969746,0.0003979,2]
[381279856,1756120239666,-500.0,0.00039873,5]